Cogmind - Beta 15 @@@ ROGUE MODE // 2025.09.16 @ 10:59:17 Player: winnking222 Result: Destroyed by S-43 Plague with Heavy Machine Gun Performance ------------- Evolutions (8) 4000 Regions Visited (20) 4000 Robots Destroyed (283) 1415 Value Destroyed (13025) 13025 Prototype IDs (94) 1880 Alien Tech Used (0) 0 Bonus (14398) 14398 TOTAL SCORE: 38718 Bonus ------- High Alert Combat Kills 2923 Follower Combat Kills 2176 Aligned with FarCom 300 Met Warlord at Base 500 MAIN.C Attacked Warlord 500 Warlord Defense Kills 1568 Built Enhanced Grunts 300 Met R17 at Cetus 500 Met R17 at Research 2000 Met Warlord at Research 2000 Invited to Help at Command 2000 Friendly Fire -369 Cogmind --------- Core Integrity 0/1450 Matter 267/300 Energy 84/100 System Corruption 5% Temperature Cool (0) Movement Core (50) Location -2/Research Parts ------- > --- POWER (2) -------- (None) > --- PROPULSION (6) --- (None) > --- UTILITY (10) ----- Advanced Hacking Suite > --- WEAPON (5) ------- (None) > --- INVENTORY (5) ---- Enhanced Biometal Leg Experimental ECM Suite Heavy Armor Plating Graphene Brace Peak State ------------ > --- POWER ------------ Mini Fusion Reactor Light Particle Reactor > --- PROPULSION ------- Heavy Siege Treads Heavy Siege Treads Biometal Medium Treads Biometal Medium Treads > --- UTILITY ---------- Large Storage Unit Advanced Matter Compressor Experimental Optical Array Experimental Transmission Jammer Experimental ECM Suite Improved Medium Armor Plating Layered Medium Armor Plating Layered Medium Armor Plating Layered Medium Armor Plating Centrium Light Armor Plating > --- WEAPON ----------- Vortex Rail Enhanced Quantum Rifle Enhanced Hardcell Cannon Guided Micro-nuke Launcher > --- INVENTORY -------- Quantum Reactor Heavy Siege Treads Heavy Siege Treads Centrium Light Armor Plating Centrium Light Armor Plating Centrium Light Armor Plating Graphene Brace Advanced Thermal Defense Suite Advanced Thermal Defense Suite Vortex Rifle Enhanced Hardcell Cannon [Rating: 180] Favorites ----------- Power Quantum Reactor Engine Ion Engine Power Core Micro Nuclear Core Reactor Quantum Reactor Propulsion Centrium Heavy Treads Treads Centrium Heavy Treads Leg Centrium Leg Wheel Wheel Hover Unit Cooled Aerolev Unit Flight Unit Improved Cesium-ion Thruster Utility Layered Medium Armor Plating Device Skeleton Box Storage High-capacity Storage Unit Processor Improved Signal Interpreter Hackware Improved System Shield Protection Layered Medium Armor Plating Weapon Advanced KE Penetrator Energy Gun Enhanced Quantum Rifle Energy Cannon Heavy Neutron Cannon Ballistic Gun Advanced KE Penetrator Ballistic Cannon Enhanced Hardcell Cannon Launcher Guided Micro-nuke Launcher Special Weapon Improved Remote Datajack Slashing Weapon Longsword +1 Special Melee Weapon Advanced Datajack Build | -11 -10 -10 -10 -9 -8 -7 -6 -6 -6 -6 -5 -5 -5 -5 -4 -4 -4 -4 -3 -2 ------- Run | Yrd Mat Min Exi Min Mat Fac Fac Ext Cet Arc Fac Upp Upp War Pro Fac Arm Lab Res Res Slots Evolved 16 | . . . . . 4 2 2 . . . 2 . . . . 2 . . 2 2 Power 1 | . . . . . . . 1 . . . . . . . . . . . . . Propulsion 4 | . . . . . 2 1 1 . . . . . . . . . . . . . Utility 8 | . . . . . 2 1 . . . . 2 . . . . 1 . . 1 1 Weapon 3 | . . . . . . . . . . . . . . . . 1 . . 1 1 Parts Attached 283 | 8 3 2 1 3 13 40 16 15 10 10 8 3 . 12 5 10 60 1 19 44 Power 31 | 2 . . . . 1 2 3 2 2 2 . . . 1 . . 6 . 5 5 Engine 7 | 2 . . . . 1 1 2 1 . . . . . . . . . . . . Core 5 | . . . . . . 1 1 1 . . . . . . . . 2 . . . Reactor 19 | . . . . . . . . . 2 2 . . . 1 . . 4 . 5 5 Propulsion 82 | 2 1 1 1 1 4 17 8 8 3 . 1 . . . . 2 18 . 4 11 Treads 16 | . . . . . . . . . 3 . 1 . . . . 2 3 . 4 3 Leg 40 | 2 1 1 1 1 1 2 . 8 . . . . . . . . 15 . . 8 Wheel 3 | . . . . . 2 . 1 . . . . . . . . . . . . . Hover 13 | . . . . . 1 6 6 . . . . . . . . . . . . . Flight 10 | . . . . . . 9 1 . . . . . . . . . . . . . Utility 104 | 2 2 . . . 4 15 4 4 2 2 5 2 . 7 4 7 17 . 9 18 Device 41 | 1 1 . . . 1 8 3 2 . 2 2 2 . 4 1 4 6 . 1 3 Storage 10 | 1 1 . . . . 1 . . . . 1 . . . . 1 1 . 2 2 Processor 15 | . . . . . . 1 . . . . 1 . . 1 . 2 4 . 2 4 Hackware 3 | . . . . . . 1 . 1 . . . . . . . . . . . 1 Protection 35 | . . . . . 3 4 1 1 2 . 1 . . 2 3 . 6 . 4 8 Artifact . | . . . . . . . . . . . . . . . . . . . . . Weapon 66 | 2 . 1 . 2 4 6 1 1 3 6 2 1 . 4 1 1 19 1 1 10 Energy Gun 17 | . . . . . 1 3 . . 1 . 1 . . 2 . . 7 1 1 . Energy Cannon 5 | . . . . . 1 1 1 . . . . . . . . . 1 . . 1 Ballistic Gun 24 | 2 . 1 . 2 1 . . 1 2 5 . . . . 1 1 5 . . 3 Ballistic Cannon 7 | . . . . . . 1 . . . . . . . . . . 3 . . 3 Launcher 7 | . . . . . 1 . . . . . 1 1 . . . . 1 . . 3 Special Weapon 4 | . . . . . . . . . . . . . . 2 . . 2 . . . Impact Weapon . | . . . . . . . . . . . . . . . . . . . . . Slashing Weapon 1 | . . . . . . 1 . . . . . . . . . . . . . . Piercing Weapon . | . . . . . . . . . . . . . . . . . . . . . Special Melee Weapon 1 | . . . . . . . . . . 1 . . . . . . . . . . Unidentified Prototypes 52 | . . . . . . 4 2 . 4 1 2 . . 6 1 1 18 . 2 11 Corrupted Parts 8 | . . . . . . . . . 1 7 . . . . . . . . . . System Corruption 36 | . . . . . . . . . 4 32 . . . . . . . . . . Parts Lost 101 | . 1 3 . . 8 13 4 5 . . 4 1 . . 1 1 28 . 2 30 Power 15 | . . 1 . . 1 2 2 . . . . . . . . . 5 . . 4 Propulsion 26 | . . 1 . . 4 7 1 3 . . 1 . . . . . 2 . . 7 Utility 35 | . 1 . . . 1 2 1 2 . . 3 1 . . 1 . 12 . 1 10 Weapon 25 | . . 1 . . 2 2 . . . . . . . . . 1 9 . 1 9 Highest Loss Streak 16 | . 1 2 . . 4 3 1 1 . . 3 1 . . 1 1 6 . 2 16 To Critical Strikes 3 | . . . . . . . . . . . . . . . . . 1 . . 2 Average Backups 13 | 4 10 14 14 14 14 12 9 9 9 10 10 13 13 19 19 19 18 10 3 10 Power 1 | . 1 2 1 3 2 1 . . 1 2 2 2 2 2 3 3 1 . . . Propulsion 2 | 2 5 6 5 3 2 2 3 1 . . . . . 1 1 1 4 3 2 1 Utility 3 | . 2 4 4 4 4 4 3 4 2 2 1 3 3 4 5 5 4 1 . 4 Weapon 4 | 1 1 1 1 2 3 3 2 3 5 5 7 8 7 10 9 8 6 3 1 2 Tool/Special . | . . . . . . . . . . . . . . . . . . . . . Unused Backups 43 | . 1 . 4 2 3 4 . 1 8 . . . . 3 . 3 3 . 1 10 Power 6 | . . . . 1 . 2 . . 1 . . . . . . . . . . 2 Propulsion 13 | . 1 . 2 1 3 . . 1 . . . . . . . 1 1 . 1 2 Utility 9 | . . . 1 . . . . . 2 . . . . . . 1 . . . 5 Weapon 15 | . . . 1 . . 2 . . 5 . . . . 3 . 1 2 . . 1 Tool/Special . | . . . . . . . . . . . . . . . . . . . . . Average Slot Usage (%) 82 | . 99 94 94 100 81 82 79 91 87 75 78 69 68 70 75 76 88 64 82 75 Engine 3 | . 14 9 9 14 6 2 9 6 2 . . . . . . . . . . . Reactor 5 | . . . . . . . . . 9 13 11 11 11 9 5 5 7 5 8 7 Treads 8 | . . . . . . . . . 9 20 16 17 17 17 17 15 4 10 15 13 Leg 10 | . 28 27 28 28 13 1 . 15 20 . . . . . . . 21 8 1 2 Hover 1 | . . . . . 2 5 18 17 . . . . . . . . . . . . Flight 1 | . . . . . . 16 13 1 . . . . . . . . . . . . Device 9 | . 13 14 14 14 17 13 9 10 6 2 8 10 9 7 5 8 8 15 14 3 Storage 7 | . 14 14 14 14 9 7 6 6 6 6 5 5 5 5 5 5 5 5 3 7 Processor 7 | . . . . . . 5 6 6 6 6 10 11 11 12 11 11 17 10 5 6 Protection 7 | . . . . . 8 6 6 4 9 13 11 . . 3 16 13 7 . 12 17 Energy Gun 1 | . . . . . 1 3 . . 2 . . . . 2 . . 1 9 8 4 Ballistic Gun 9 | . 28 28 28 28 10 . . 1 3 . 10 10 11 5 10 14 7 . . . Slashing Weapon 1 | . . . . . . 4 6 6 3 6 . . . . . . . . . . Peak Build Rating 180 | 7 8 9 13 14 27 56 65 75 123 124 134 121 121 137 137 149 152 123 159 180 Average Rating 97 | 5 7 8 11 13 22 41 54 66 97 118 129 116 113 119 134 145 137 121 147 156 On Entrance 76 | . 7 8 8 13 14 21 37 58 71 123 123 115 121 110 137 136 133 99 123 154 Naked Turns 65 | . . . . . . . . . . . . . . . . . . . . 65 Heaviest Build 138 | 13 28 28 26 26 39 43 33 45 75 79 109 98 98 109 122 129 119 79 96 138 Greatest Support 240 | 20 20 20 25 25 40 39 61 125 240 240 240 240 240 240 240 240 225 155 215 215 Greatest Overweight (x) 4 | . 1 1 1 1 3 4 . 1 2 . . . . . . . 3 1 1 1 Average Overweight (x) . | . . 1 1 1 1 . . . . . . . . . . . . . . . Largest Inventory Capacity 20 | 8 15 15 15 15 15 15 10 10 10 10 20 20 20 20 20 20 20 20 20 15 Average Capacity 14 | 7 13 15 15 15 15 13 10 10 10 10 13 20 20 20 20 20 20 20 6 13 Most Carried 20 | 6 15 15 15 15 15 15 10 10 10 10 14 14 18 20 20 20 20 13 11 15 Average Carried 13 | 4 10 14 14 14 14 12 9 9 9 10 11 13 13 19 19 19 19 10 5 12 Final Capacity 20 | 8 15 15 15 15 15 10 10 10 10 10 20 20 20 20 20 20 20 20 5 5 Final Carried 20 | 6 14 15 15 15 15 8 10 10 10 10 13 13 18 20 20 20 13 10 5 5 Class Distribution -------------------- 36% | Scavenger-Mutant 19% | Scavenger-Tank 14% | Commander-Mutant 12% | Mutant 5% | Scavenger-Skirmisher 5% | Scavenger-Gunner Dominant Class ---------------- Mutant | -10/Materials Scavenger-Mutant | -10/Mines Scavenger-Mutant | -10/Exiles Scavenger-Mutant | -9/Mines Scavenger-Mutant | -8/Materials Scavenger-Mutant | -7/Factory Mutant | -6/Factory Commander-Mutant | -6/Extension Commander-Mutant | -6/Cetus Commander-Mutant | -6/Archives Scavenger-Skirmisher | -5/Factory Scavenger-Mutant | -5/Upper Caves Scavenger-Mutant | -5/Upper Caves Scavenger-Mutant | -5/Warlord Scavenger-Mutant | -4/Proximity Caves Scavenger-Tank | -4/Factory Scavenger-Gunner | -4/Armory Mutant | -4/Lab Scavenger-Tank | -3/Research Scavenger-Tank | -2/Research Resources | -11 -10 -10 -10 -9 -8 -7 -6 -6 -6 -6 -5 -5 -5 -5 -4 -4 -4 -4 -3 -2 ----------- Run | Yrd Mat Min Exi Min Mat Fac Fac Ext Cet Arc Fac Upp Upp War Pro Fac Arm Lab Res Res Matter Collected 10482 | 312 317 42 . 72 407 366 325 312 186 198 607 401 215 297 374 639 2863 19 978 1552 Remotely . | . . . . . . . . . . . . . . . . . . . . . Salvage Created 12135 | 140 287 55 . 83 740 749 426 1199 38 284 915 248 282 316 725 1121 3285 . 216 1026 Parts 589 | 11 16 3 . 5 44 52 27 52 . 24 45 5 17 5 26 60 140 . 8 49 Haulers Intercepted 6 | . 1 . . . . 2 . . . . . . . . 1 . . . 1 1 Recyclers Shooed 6 | 1 . . . . . . . . . . 1 . . . . 4 . . . . Parts Field Recycled . | . . . . . . . . . . . . . . . . . . . . . Retrieved Matter . | . . . . . . . . . . . . . . . . . . . . . Parts Self-Destructed 43 | . . . . . . . . . . . . 10 13 . 20 . . . . . Prevented 7 | . . . . . . . . . . . . 1 . . 6 . . . . . Kills | -11 -10 -10 -10 -9 -8 -7 -6 -6 -6 -6 -5 -5 -5 -5 -4 -4 -4 -4 -3 -2 ------- Run | Yrd Mat Min Exi Min Mat Fac Fac Ext Cet Arc Fac Upp Upp War Pro Fac Arm Lab Res Res Combat Hostiles Destroyed 210 | . 7 3 . 4 10 7 3 15 . . 15 5 7 12 12 18 70 . 2 20 Melee 24 | . . . . . . 6 3 14 . . . . . . . . 1 . . . Guns 109 | . 7 3 . 4 7 . . . . . 12 3 7 3 10 13 34 . 1 5 Cannons 23 | . . . . . 1 . . . . . . . . . . . 20 . 1 1 AOE 51 | . . . . . 2 . . 1 . . 3 2 . 9 1 5 14 . . 14 Classes Destroyed 25 | 2 4 . . . 4 2 . 1 . . 1 . 1 2 1 . 5 . . 2 Worker 13 | . . . . . 4 2 1 . . . . . . . . 3 . . 1 2 Builder 8 | . . . . . 4 1 . . . . 1 . . . . 2 . . . . Tunneler 8 | 3 . . . . . . 2 1 . . . . . . . 2 . . . . Hauler 6 | . 1 . . . . 2 . . . . . . . . 1 . . . 1 1 Recycler 10 | 1 . . . . 3 1 1 2 . . . . . . . 1 . . . 1 Mechanic 5 | . . . . . . . . . . . . . . . . . 4 . 1 . Operator 10 | . . . . . . 1 1 . . 8 . . . . . . . . . . Drone 1 | . . . . . . . . . . . . . . . 1 . . . . . Watcher 12 | . 1 . . . . 3 2 2 1 . . . . . . . 3 . . . Swarmer 50 | . 3 3 . 3 4 1 . . . . . 3 5 . 4 9 9 . . 6 Saboteur 2 | . . . . . . . . . . . . . . . . . 2 . . . Grunt 56 | . 4 . . 1 . 2 1 7 . . 6 1 . 7 5 . 19 . . 3 Brawler 1 | . . . . . . . . . . . . . . 1 . . . . . . Duelist 7 | . . . . . . . . 1 . . . . . 1 . . 5 . . . Protector 1 | . . . . . . . . . . . . . . . . . . . . 1 Sentry 26 | . . . . . 4 1 . 7 . . 1 1 1 . . 5 5 . 1 . Demolisher 2 | . . . . . . . . . . . . . . . . . 2 . . . Specialist 4 | . . . . . . . . . . . . . . . . . 4 . . . Hunter 22 | . . . . . 2 . . . . . 4 . . . . 1 10 . . 5 Programmer 27 | . . . . . . 3 2 . . . 3 . . 1 2 3 13 . . . Heavy 1 | . . . . . . . . . . . . . . . . . 1 . . . Behemoth 1 | . . . . . . . . . . . 1 . . . . . . . . . Striker 6 | . . . . . . . . . . . . . . 2 . . . . 1 3 Executioner 2 | . . . . . . . . . . . . . . . . . . . . 2 Butcher 1 | . . . . . . . . 1 . . . . . . . . . . . . Mutant 1 | . . . . . . . . . . . . . 1 . . . . . . . Best Kill Streak 9 | 1 3 3 . 3 6 2 2 7 1 2 5 4 4 9 4 5 8 . 2 4 Combat Bots Only 9 | . 3 3 . 3 3 2 2 3 . . 4 4 4 9 4 5 8 . 1 4 Max Kills in Single Turn 5 | 1 1 1 . 1 3 1 1 3 1 1 4 1 1 4 1 5 3 . 1 3 Gunslinging 1 | . . . . . . . . . . . 1 . . . . 1 1 . . . Exploded 5 | . . . . . 1 . . 1 . . 3 1 . 4 1 5 3 . . 3 Melee 1 | . . . . . . 1 1 1 . . . . . . . . 1 . . . Uniques/NPCs Destroyed . | . . . . . . . . . . . . . . . . . . . . . Combat | -11 -10 -10 -10 -9 -8 -7 -6 -6 -6 -6 -5 -5 -5 -5 -4 -4 -4 -4 -3 -2 -------- Run | Yrd Mat Min Exi Min Mat Fac Fac Ext Cet Arc Fac Upp Upp War Pro Fac Arm Lab Res Res Hostile Shots Fired 2393 | . 44 22 . 20 109 176 83 101 5 6 183 30 35 5 55 154 815 . 36 514 Missed 753 | . 14 4 . 4 32 66 41 51 2 2 41 10 8 1 17 44 242 . 12 162 Hits 1640 | . 30 18 . 16 77 110 42 50 3 4 142 20 27 4 38 110 573 . 24 352 Melee 45 | . . . . . . 1 . 3 . . . . 6 2 . . 17 . 3 13 Projectile 1595 | . 30 18 . 16 77 109 42 47 3 4 142 20 21 2 38 110 556 . 21 339 AOE 25 | . . . . . . . . . . . . . . . . . 9 . 4 12 Critical Strikes 60 | . . . . . 2 1 1 1 . . 4 . . 1 1 3 33 . 1 12 Actively Blocked 6 | . . . . . . . . . . . . . . . . . 5 . 1 . Part Disruptions 2 | . . . . . . . . . . . 1 . . . . . 1 . . . Damage Taken 33853 | . 373 273 . 144 1086 1784 546 564 40 106 3050 369 362 182 661 1201 11596 . 907 10609 Core 3723 | . 54 29 . 34 106 422 102 119 . . 163 34 12 . 33 33 1110 . . 1472 Absorbed by Shields 1335 | . . . . . . . . 146 38 . . . . 11 59 1032 49 . . . Reduced by Siege Mode 653 | . . . . . . . . . . . 55 . 8 . . 54 536 . . . Redirected to Shielding 46 | . . . . . . . . . . . . . . . . . . . . 46 Regen/Repaired (Parts) 2196 | . . . . . . . 29 . . . . . . 700 . . 674 . . 793 Core Remaining (%) 65 | 100 . . . 53 80 39 . . . 74 . . . . 75 . . . 100 . Volleys Fired 732 | 16 46 20 . 13 75 21 . 17 8 8 69 16 26 12 37 57 196 . 23 72 Largest 3 | 2 2 2 . 2 2 2 . 1 2 1 2 2 2 2 2 3 3 . 3 3 Hottest 240 | 40 40 40 . 40 116 119 . 60 240 60 70 81 70 70 75 108 240 . 168 168 Shots Fired 1424 | 32 92 40 . 26 117 42 . 18 10 10 135 31 52 20 74 127 449 . 48 101 Gun 1148 | 32 92 40 . 26 103 36 . 6 5 9 135 28 52 16 70 127 302 . 25 44 Cannon 189 | . . . . . 11 6 . 3 5 1 . . . . . . 123 . 23 17 Launcher 78 | . . . . . 3 . . 9 . . . 3 . . 4 . 19 . . 40 Special 9 | . . . . . . . . . . . . . . 4 . . 5 . . . Kinetic 1124 | 32 92 40 . 26 101 . . 6 2 9 135 28 52 16 70 127 326 . 23 39 Thermal 116 | . . . . . 13 . . . 3 . . . . . . . 69 . 18 13 Explosive 63 | . . . . . 3 . . 9 . . . . . 4 . . 14 . . 33 Electromagnetic 74 | . . . . . . 42 . 3 5 1 . 3 . . 4 . 9 . . 7 Entropic 46 | . . . . . . . . . . . . . . . . . 30 . 7 9 Robot Hit Streak 19 | 4 11 9 . 6 16 17 . 3 3 5 15 8 4 5 7 19 19 . 7 9 Robot Miss Streak 7 | 3 3 4 . 3 4 1 . 1 1 2 5 3 5 5 7 5 4 . 6 5 Penetration Max 2 | . . . . . 1 . . . . . 1 . 1 1 . 2 1 . . 1 Secondary Targets 20 | . 3 . . . 1 . . . . . 3 . 1 . 2 3 7 . . . Max Gunslinging Chain 1 | . 1 . . . 1 . . . . . 1 . 1 . 1 1 1 . . . Shots Hit Robots 920 | 18 57 25 . 14 84 60 23 35 5 28 78 10 19 10 34 79 269 . 30 42 Core Hits 580 | 8 20 11 . 6 38 22 8 48 14 7 36 5 9 25 22 49 158 . 13 81 Critical Kills 23 | . . . . . 1 . . . . . 5 1 4 1 . 2 8 . . 1 Critical Parts Destroyed 48 | . . . . . 2 . . . . . 16 . 2 2 4 4 11 . 1 6 Critical Strikes 91 | . . . . . 4 1 . 6 . 2 22 1 6 3 4 7 26 . 2 7 Burn 1 | . . . . . 1 . . . . . . . . . . . . . . . Destroy 70 | . . . . . 3 . . . . . 22 1 6 3 4 7 19 . . 5 Blast 6 | . . . . . . . . . . . . . . . . . 5 . 1 . Sever 11 | . . . . . . 1 . 6 . 2 . . . . . . 2 . . . Detonate 3 | . . . . . . . . . . . . . . . . . . . 1 2 Melee Attacks 127 | . . . . . . 40 31 32 . 24 . . . . . . . . . . Impact . | . . . . . . . . . . . . . . . . . . . . . Slashing 122 | . . . . . . 40 31 32 . 19 . . . . . . . . . . Piercing . | . . . . . . . . . . . . . . . . . . . . . Sneak Attacks 30 | . . . . . . 7 5 3 . 15 . . . . . . . . . . Combat Hostiles 3 | . . . . . . . . 3 . . . . . . . . . . . . Follow-up Attacks . | . . . . . . . . . . . . . . . . . . . . . Damage Inflicted 43969 | 149 480 225 . 129 1708 1862 1448 2679 509 1639 3011 500 578 2223 1270 3435 13426 . 1296 7402 Guns 16975 | 149 480 225 . 119 1196 238 . 19 59 171 2366 221 578 451 948 2840 5587 . 515 813 Cannons 4755 | . . . . . 157 85 . 7 21 . . . . . . . 3636 . 665 184 Explosions 15917 | . . . . . 353 . . 1080 429 . 637 279 . 1772 322 595 3981 . 79 6390 Melee 6028 | . . . . . . 1539 1448 1573 . 1468 . . . . . . . . . . Ramming 98 | . . . . 10 2 . . . . . 8 . . . . . 26 . 37 15 Kinetic 17321 | 149 480 225 . 119 1167 . . 19 37 171 2366 221 578 451 948 2840 6233 . 665 652 Thermal 4337 | . . . . . 186 . . . 22 . 637 . . . . . 2622 . 476 394 Explosive 12171 | . . . . . 353 . . 532 . . . . . 1772 . 580 3134 . . 5800 Electromagnetic 2568 | . . . . . . 323 . 555 450 . . 279 . . 322 15 244 . . 380 Impact . | . . . . . . . . . . . . . . . . . . . . . Slashing 6224 | . . . . . . 1539 1448 1573 . 1468 . . . . . . 196 . . . Piercing . | . . . . . . . . . . . . . . . . . . . . . Entropic 1250 | . . . . . . . . . . . . . . . . . 971 . 118 161 Highest Corruption 33 | . . . . . 1 9 1 6 12 33 16 18 18 18 2 2 10 10 . 5 Average Corruption 6 | . . . . . 1 4 1 1 9 3 10 17 18 18 1 1 4 10 . 4 Corruption Purged 22 | . . . . . . 3 . 5 . 14 . . . . . . . . . . Corruption Blocked . | . . . . . . . . . . . . . . . . . . . . . Effects 305 | . . . . . 8 18 . 15 30 17 44 37 34 2 12 4 76 1 . 7 Message Errors 78 | . . . . . 1 4 . 4 6 4 16 6 12 . 3 2 18 . . 2 Matter Fused 65 | . . . . . 4 4 . 1 10 3 8 8 5 . 2 . 20 . . . Heat Flow Errors 35 | . . . . . . 2 . 2 6 3 3 3 6 1 3 1 5 . . . Energy Discharges 36 | . . . . . . 2 . 1 1 1 6 8 3 1 1 . 9 1 . 2 Parts Rejected 3 | . . . . . . . . 1 . . . . . . . . 1 . . 1 Parts Fused 2 | . . . . . . . . . . . 1 . . . 1 . . . . . Data Loss (minor) 43 | . . . . . 1 5 . 2 5 4 4 6 3 . 2 1 9 . . 1 Data Loss (major) 16 | . . . . . 1 1 . 1 1 1 1 1 3 . . . 5 . . 1 Misfires 10 | . . . . . . . . 2 1 1 2 1 . . . . 3 . . . Alerts 7 | . . . . . . . . . . . 1 3 1 . . . 2 . . . Misdirections 1 | . . . . . . . . . . . . . 1 . . . . . . . Weapon Failures 9 | . . . . . 1 . . 1 . . 2 1 . . . . 4 . . . Overload Shots 1 | . . . . . . . . . 1 . . . . . . . . . . . Overflow Damage 2148 | . . . . . 41 163 277 32 3 582 117 62 . 8 . 53 377 . 28 405 Projectiles 185 | . . . . . . . . . . . . . . . . . 185 . . . Explosions 917 | . . . . . 41 . . 8 3 . 117 62 . 8 . 53 192 . 28 405 Melee 1046 | . . . . . . 163 277 24 . 582 . . . . . . . . . . Knockbacks 23 | . . . . . . . . . . . . . . . . . 18 . 2 3 Impact 1 | . . . . . . . . . . . . . . . . . . . . 1 Kinetic 22 | . . . . . . . . . . . . . . . . . 18 . 2 2 Secondary . | . . . . . . . . . . . . . . . . . . . . . Self-Inflicted Damage 825 | . . . . . . . . . . . 33 32 . . 50 73 388 . . 249 Shots 24 | . . . . . . . . . . . 1 2 . . 3 1 10 . . 7 Rammed 13 | . . . . . 2 . . . . . 3 . . . . . 2 . 5 1 Targets Rammed 19 | . . 1 . 3 4 . . . . . 3 . . . . . 2 . 5 1 Kicked 6 | . . 1 . 3 2 . . . . . . . . . . . . . . . Crushed . | . . . . . . . . . . . . . . . . . . . . . Highest Temperature 451 | . 38 9 . 6 15 286 2 130 261 236 329 286 209 128 320 426 414 . 285 451 Average Temperature 89 | . 16 8 . 6 5 44 2 28 98 63 90 79 76 57 68 167 105 . 133 67 Received Heat Transfer 2962 | . 189 66 . 30 225 102 36 121 . 9 276 27 18 9 108 12 1536 . 27 171 Effects 41 | . . . . . . . . . 1 . 5 . . . 2 6 10 . 5 12 Shutdowns 6 | . . . . . . . . . . . . . . . . 1 3 . . 2 Energy Bleed 7 | . . . . . . . . . . . 1 . . . . 2 . . 2 2 Interference 20 | . . . . . . . . . 1 . 3 . . . 2 1 2 . 3 8 Matter Decay 2 | . . . . . . . . . . . 1 . . . . 1 . . . . Short Circuit 2 | . . . . . . . . . . . . . . . . 1 1 . . . Damage (major) 4 | . . . . . . . . . . . . . . . . . 4 . . . Siege Activations 10 | . . . . . . . . . . . 3 . 3 . . 1 3 . . . Total Turns 218 | . . . . . . . . . . . 36 . 64 . . 53 65 . . . Longest Duration 53 | . . . . . . . . . . . 27 . 47 . . 53 36 . . . Martial Activations . | . . . . . . . . . . . . . . . . . . . . . Shielding Activations . | . . . . . . . . . . . . . . . . . . . . . Robots Disrupted 1 | . . . . . . . . . . . . . . . . . . . . 1 Combat Hostiles 1 | . . . . . . . . . . . . . . . . . . . . 1 Robots Corrupted 3 | . . . . . . 1 . . . . . . . . 1 . 1 . . . Combat Hostiles 3 | . . . . . . 1 . . . . . . . . 1 . 1 . . . Parts Fried 9 | . . . . . . 5 . 1 . . . . . . 3 . . . . . Impact Corruptions . | . . . . . . . . . . . . . . . . . . . . . Robots Melted . | . . . . . . . . . . . . . . . . . . . . . Combat Hostiles . | . . . . . . . . . . . . . . . . . . . . . Parts Melted 3 | . . . . . 1 . . . . . 1 . . . . . 1 . . . Heat Transferred 2670 | . . . . . 481 . . . 18 . 350 . . . . . 868 . 581 372 Parts Sabotaged 6 | . . . . . . . . . . . . . . . . . 6 . . . Parts Stolen 3 | . . . . . . . . . . . . . 3 . . . . . . . Parts Stripped . | . . . . . . . . . . . . . . . . . . . . . Power Chain Reactions 7 | . . . . . . . . . . . . 1 . . . . 5 . . 1 Latent Energy Used 572 | . . . . . . . . 171 201 200 . . . . . . . . . . LE Corruption 15 | . . . . . . . . 5 7 3 . . . . . . . . . . Alert | -11 -10 -10 -10 -9 -8 -7 -6 -6 -6 -6 -5 -5 -5 -5 -4 -4 -4 -4 -3 -2 ------- Run | Yrd Mat Min Exi Min Mat Fac Fac Ext Cet Arc Fac Upp Upp War Pro Fac Arm Lab Res Res Maximum Alert Level 5 | . . . . . . . . 3 3 1 2 . . . . 3 5 . . 2 Low Security (%) 56 | 100 100 100 . 100 100 100 100 53 . 40 28 . . . . . . . 100 56 Level 1 13 | . . . . . . . . 2 . 59 57 . . . . . 17 . . 14 Level 2 15 | . . . . . . . . 12 91 . 14 . . . . 30 19 . . 28 Level 3 8 | . . . . . . . . 32 8 . . . . . . 69 15 . . . Level 4 5 | . . . . . . . . . . . . . . . . . 35 . . . Level 5 1 | . . . . . . . . . . . . . . . . . 11 . . . High Security . | . . . . . . . . . . . . . . . . . . . . . Max Security . | . . . . . . . . . . . . . . . . . . . . . Peak Influence 1977 | 5 70 77 . 60 130 89 97 1075 743 396 530 . . . . 885 1977 . 32 530 Initial 750 | . 3 . . . . 14 35 28 560 254 18 . . . . 750 370 . . 6 Average 318 | 1 7 11 . 4 63 20 46 443 611 227 273 . . . . 708 1015 . 2 193 Influence Increases 11540 | 20 202 155 . 90 383 452 275 1586 594 287 1352 110 190 240 250 1460 2580 . 95 1219 Destroy 0b10 Robot/C 5160 | . 140 100 . 80 200 140 60 720 260 80 500 100 120 240 220 360 1420 . 40 380 Destroy 0b10 Robot/NC 405 | 20 10 . . . 55 50 35 40 10 40 20 . . . 10 40 35 . 15 25 Destroy Leader 896 | . 34 20 . 10 70 60 24 54 20 . 134 10 10 . 20 100 266 . 12 52 Allied During Kill 1433 | . . 5 . . . . . 693 290 120 316 . . . . . 9 . . . Successful Hack 85 | . 18 . . . 6 . 2 . 8 . 30 . . . . . 21 . . . Select Force Hacks 50 | . . . . . . . . . . . 50 . . . . . . . . . Disable Machine 495 | . . . . . . 60 15 15 . 30 90 . . . . 75 195 . . 15 Destroy Structure 1606 | . . . . . 22 7 4 49 6 17 182 . . . . 120 544 . 28 627 Advance Influence 750 | . . . . . . . . . . . . . . . . 750 . . . . Partial Spotted 45 | . . . . . . 45 . . . . . . . . . . . . . . Lose Combat Pursuer 615 | . . 30 . . 30 90 135 15 . . 30 . 60 . . 15 90 . . 120 Influence Decreases 11065 | 15 207 155 . 90 352 411 288 644 959 868 877 607 223 158 332 704 1391 1945 83 756 Entered New Map 3570 | . 2 . . . . 17 37 31 441 382 37 197 7 . 82 . 386 1945 . 6 Time Decay 5716 | 15 195 109 . 90 272 314 223 483 398 446 562 380 216 158 250 374 695 . 79 457 Search Patrol Dispatched 300 | . . . . . . . . . . . . . . . . 300 . . . . Lost Part 895 | . 10 10 . . 80 80 28 50 . . 40 10 . . . 10 280 . 4 293 Lost Ally 584 | . . 36 . . . . . 80 120 40 238 20 . . . 20 30 . . . Squads Dispatched 54 | . 1 . . . 3 11 5 2 . . 7 . . . . 4 16 . 4 1 Investigation 14 | . 1 . . . 2 4 2 1 . . 2 . . . . . 2 . . . Extermination 17 | . . . . . . 4 2 . . . 4 . . . . 1 6 . . . Reinforcement 18 | . . . . . 1 3 1 1 . . 1 . . . . 2 4 . 4 1 Assault 5 | . . . . . . . . . . . . . . . . 1 4 . . . Garrison . | . . . . . . . . . . . . . . . . . . . . . Intercept . | . . . . . . . . . . . . . . . . . . . . . Searches Triggered 2 | . . . . . . . . . . . . . . . . 2 . . . . Construction Impeded 3 | . . . . . . . . 1 . . 1 . . . . 1 . . . . Haulers Reinforced 2 | . . . . . . . . . . . . . . . . . . . 2 . Active Scanning Responses . | . . . . . . . . . . . . . . . . . . . . . Cargo Convoy Interrupts . | . . . . . . . . . . . . . . . . . . . . . Stealth | -11 -10 -10 -10 -9 -8 -7 -6 -6 -6 -6 -5 -5 -5 -5 -4 -4 -4 -4 -3 -2 --------- Run | Yrd Mat Min Exi Min Mat Fac Fac Ext Cet Arc Fac Upp Upp War Pro Fac Arm Lab Res Res Distress Signals 34 | . 1 . . . 1 1 2 3 2 . 1 . . . 1 . 7 . 4 11 Communications Jammed . | . . . . . . . . . . . . . . . . . . . . . Distress Signals . | . . . . . . . . . . . . . . . . . . . . . Times Spotted 488 | . 12 13 . 5 21 32 12 29 8 18 30 10 14 30 17 21 113 . 18 85 Peak Tracking Total 16 | . 3 3 . 3 7 7 7 7 5 2 6 5 4 16 4 5 10 . 3 12 Tactical Retreats 36 | . . 2 . . 2 3 5 1 . . 2 . 4 . . 1 11 . . 5 Traps | -11 -10 -10 -10 -9 -8 -7 -6 -6 -6 -6 -5 -5 -5 -5 -4 -4 -4 -4 -3 -2 ------- Run | Yrd Mat Min Exi Min Mat Fac Fac Ext Cet Arc Fac Upp Upp War Pro Fac Arm Lab Res Res Traps Triggered 19 | . 1 . . . . 4 3 4 . . 2 . . . . . 5 . . . Indirectly 2 | . . . . . . . . . . . . . . . . . 2 . . . Trap Hack Attempts . | . . . . . . . . . . . . . . . . . . . . . Triggered . | . . . . . . . . . . . . . . . . . . . . . Disarmed . | . . . . . . . . . . . . . . . . . . . . . Reprogrammed . | . . . . . . . . . . . . . . . . . . . . . Reused . | . . . . . . . . . . . . . . . . . . . . . Traps Extracted . | . . . . . . . . . . . . . . . . . . . . . Installed . | . . . . . . . . . . . . . . . . . . . . . Triggered . | . . . . . . . . . . . . . . . . . . . . . Machines | -11 -10 -10 -10 -9 -8 -7 -6 -6 -6 -6 -5 -5 -5 -5 -4 -4 -4 -4 -3 -2 ---------- Run | Yrd Mat Min Exi Min Mat Fac Fac Ext Cet Arc Fac Upp Upp War Pro Fac Arm Lab Res Res Machines Disabled 38 | . . . . . . 4 1 3 1 2 6 . 1 1 . 5 13 . . 1 Max in Single Turn 3 | . . . . . . 1 1 2 . . 2 . 1 1 . 2 3 . . 1 Garrison Access 3 | . . . . . . . 1 . . . 1 . . . . . . . . 1 Machines Repaired . | . . . . . . . . . . . . . . . . . . . . . Machines Dismantled 1 | . . . . . . . . . . . . . . 1 . . . . . . Machines Sabotaged . | . . . . . . . . . . . . . . . . . . . . . Overloaded Fab Kills . | . . . . . . . . . . . . . . . . . . . . . Hacking | -11 -10 -10 -10 -9 -8 -7 -6 -6 -6 -6 -5 -5 -5 -5 -4 -4 -4 -4 -3 -2 --------- Run | Yrd Mat Min Exi Min Mat Fac Fac Ext Cet Arc Fac Upp Upp War Pro Fac Arm Lab Res Res Machines Accessed 55 | . 7 . 1 . 6 8 8 1 1 . 6 . . 7 . 1 9 . . . Terminals 25 | . 7 . . . 6 1 3 1 1 . 2 . . . . . 4 . . . Fabricators 13 | . . . . . . 4 3 . . . 3 . . . . 1 2 . . . Repair Stations 3 | . . . . . . . 1 . . . . . . . . . 2 . . . Recycling Units 1 | . . . . . . . . . . . . . . . . . 1 . . . Scanalyzers 1 | . . . . . . 1 . . . . . . . . . . . . . . Garrison Access 4 | . . . . . . 2 1 . . . 1 . . . . . . . . . Total Hacks 107 | . 16 . 1 . 14 14 14 1 1 . 8 . . 23 . 1 14 . . . Successful 66 | . 9 . 1 . 9 1 6 . 1 . 5 . . 23 . 1 10 . . . Failed 41 | . 7 . . . 5 13 8 1 . . 3 . . . . . 4 . . . Catastrophic 10 | . 1 . . . 1 4 2 1 . . . . . . . . 1 . . . Database Lockouts . | . . . . . . . . . . . . . . . . . . . . . Manual 36 | . 16 . 1 . 12 . 2 1 1 . 2 . . 1 . . . . . . Terminals 45 | . 16 . . . 14 2 5 1 1 . 2 . . . . . 4 . . . Fabricators 17 | . . . . . . 6 4 . . . 4 . . . . 1 2 . . . Repair Stations 9 | . . . . . . . 4 . . . . . . . . . 5 . . . Recycling Units 3 | . . . . . . . . . . . . . . . . . 3 . . . Scanalyzers 2 | . . . . . . 2 . . . . . . . . . . . . . . Garrison Access 7 | . . . . . . 4 1 . . . 2 . . . . . . . . . Terminal Hacks 31 | . . . 1 . 2 . . . 1 . 1 . . 23 . . 3 . . . Record 12 | . . . . . . . . . 1 . . . . 11 . . . . . . Prototype ID Bank 11 | . . . . . . . . . . . . . . 11 . . . . . . Open Door 3 | . . . . . . . . . . . . . . 1 . . 2 . . . Emergency Access Points 2 | . . . . . 2 . . . . . . . . . . . . . . . Alert Level 1 | . . . . . . . . . . . . . . . . . 1 . . . Zone Layout 1 | . . . . . . . . . . . 1 . . . . . . . . . Proto ID Catalog 1 | . . . 1 . . . . . . . . . . . . . . . . . Fabricator Hacks 7 | . . . . . . 1 2 . . . 2 . . . . 1 1 . . . Network Status 5 | . . . . . . 1 2 . . . 1 . . . . 1 . . . . Build 2 | . . . . . . . . . . . 1 . . . . . 1 . . . Repair Station Hacks 7 | . . . . . . . 3 . . . . . . . . . 4 . . . Scan Component 4 | . . . . . . . 2 . . . . . . . . . 2 . . . Repair 3 | . . . . . . . 1 . . . . . . . . . 2 . . . Recycling Unit Hacks 2 | . . . . . . . . . . . . . . . . . 2 . . . Retrieve Matter 2 | . . . . . . . . . . . . . . . . . 2 . . . Scanalyzer . | . . . . . . . . . . . . . . . . . . . . . Garrison Access Hacks 2 | . . . . . . . 1 . . . 1 . . . . . . . . . Seal Access 2 | . . . . . . . 1 . . . 1 . . . . . . . . . Unauthorized Hacks 17 | . 9 . . . 7 . . . . . 1 . . . . . . . . . Terminals 16 | . 9 . . . 7 . . . . . . . . . . . . . . . Assimilate 1 | . 1 . . . . . . . . . . . . . . . . . . . Botnet 3 | . 1 . . . 2 . . . . . . . . . . . . . . . Skim 12 | . 7 . . . 5 . . . . . . . . . . . . . . . Fabricators 1 | . . . . . . . . . . . 1 . . . . . . . . . Overload 1 | . . . . . . . . . . . 1 . . . . . . . . . Repair Stations . | . . . . . . . . . . . . . . . . . . . . . Recycling Units . | . . . . . . . . . . . . . . . . . . . . . Scanalyzers . | . . . . . . . . . . . . . . . . . . . . . Garrison Access . | . . . . . . . . . . . . . . . . . . . . . Data Cores Recovered 1 | . . . . . . . 1 . . . . . . . . . . . . . Used . | . . . . . . . . . . . . . . . . . . . . . Hacking Detections 30 | . 4 . . . 3 7 6 . 1 . 3 . . . . . 6 . . . Full Trace Events 8 | . 1 . . . 2 4 1 . . . . . . . . . . . . . Feedback Events 1 | . . . . . 1 . . . . . . . . . . . . . . . Corruption 1 | . . . . . 1 . . . . . . . . . . . . . . . Feedback Blocked . | . . . . . . . . . . . . . . . . . . . . . Robot Schematics Acquired . | . . . . . . . . . . . . . . . . . . . . . Robots Built . | . . . . . . . . . . . . . . . . . . . . . Authchips . | . . . . . . . . . . . . . . . . . . . . . Time . | . . . . . . . . . . . . . . . . . . . . . Total Robot Build Rating . | . . . . . . . . . . . . . . . . . . . . . Part Schematics Acquired . | . . . . . . . . . . . . . . . . . . . . . Parts Built 1 | . . . . . . . . . . . 1 . . . . . . . . . Authchips . | . . . . . . . . . . . . . . . . . . . . . Time 208 | . . . . . . . . . . . 69 . . . . . 139 . . . Total Part Build Rating 9 | . . . . . . . . . . . 9 . . . . . . . . . Parts Repaired 3 | . . . . . . . 1 . . . . . . . . . 2 . . . Time 168 | . . . . . . . 44 . . . . . . . . . 124 . . . Parts Recycled . | . . . . . . . . . . . . . . . . . . . . . Recycled Matter . | . . . . . . . . . . . . . . . . . . . . . Retrieved Matter . | . . . . . . . . . . . . . . . . . . . . . Retrieved Components . | . . . . . . . . . . . . . . . . . . . . . Parts Scanalyzed . | . . . . . . . . . . . . . . . . . . . . . Part Schematics Acquired . | . . . . . . . . . . . . . . . . . . . . . Parts Damaged . | . . . . . . . . . . . . . . . . . . . . . Bothacking | -11 -10 -10 -10 -9 -8 -7 -6 -6 -6 -6 -5 -5 -5 -5 -4 -4 -4 -4 -3 -2 ------------ Run | Yrd Mat Min Exi Min Mat Fac Fac Ext Cet Arc Fac Upp Upp War Pro Fac Arm Lab Res Res Used RIF Installer . | . . . . . . . . . . . . . . . . . . . . . Robots Hacked 3 | . . . . . . . . . . 2 . . . . . . 1 . . . Non-combat 2 | . . . . . . . . . . 2 . . . . . . . . . . Combat . | . . . . . . . . . . . . . . . . . . . . . Robot Hacks Applied 5 | . . . . . . . . . . 5 . . . . . . . . . . check_alert 5 | . . . . . . . . . . 5 . . . . . . . . . . Manual 1 | . . . . . . . . . . . . . . . . . 1 . . . Relay Couplers Released 1 | . . . . . . . . . . . . . . . . . . . . 1 Machine Destruction 1 | . . . . . . . . . . . . . . . . . . . . 1 Fabnet Peak Effective % . | . . . . . . . . . . . . . . . . . . . . . Robots Rewired 24 | . . . . . . . . 23 . . . . . . . . 1 . . . Allies Hacked . | . . . . . . . . . . . . . . . . . . . . . Hacks Repelled . | . . . . . . . . . . . . . . . . . . . . . Allies | -11 -10 -10 -10 -9 -8 -7 -6 -6 -6 -6 -5 -5 -5 -5 -4 -4 -4 -4 -3 -2 -------- Run | Yrd Mat Min Exi Min Mat Fac Fac Ext Cet Arc Fac Upp Upp War Pro Fac Arm Lab Res Res Total Allies 41 | . . 3 . . . . . 31 5 . . . . . . . 2 . . . Largest Group 22 | . . 3 . . . . . 22 21 17 15 . . . . . 1 . . . Highest-Rated Group 1066 | . . 40 . . . . . 771 1066 844 782 . . . . . 116 . . . Highest-Rated Ally 159 | . . 16 . . . . . 159 152 96 96 . . . . . 116 . . . Total Orders 10 | . . . . . . . . . . . . 4 2 . . 4 . . . . EXPLORE 10 | . . . . . . . . . . . . 4 2 . . 4 . . . . Ally Attacks 369 | . . 35 . . . . . 166 57 28 74 . . . . . 9 . . . Total Damage 6980 | . . 280 . . . . . 2959 1181 521 1489 . . . . . 550 . . . Kills 65 | . . 4 . . . . . 28 15 4 13 . . . . . 1 . . . Allies Corrupted 4 | . . . . . . . . . . . 4 . . . . . . . . . Allies Melted . | . . . . . . . . . . . . . . . . . . . . . Intel | -11 -10 -10 -10 -9 -8 -7 -6 -6 -6 -6 -5 -5 -5 -5 -4 -4 -4 -4 -3 -2 ------- Run | Yrd Mat Min Exi Min Mat Fac Fac Ext Cet Arc Fac Upp Upp War Pro Fac Arm Lab Res Res Active Infowar (turns) 18979 | 54 1464 922 723 975 929 915 221 664 . . 1610 880 763 1401 525 829 2882 49 1389 1784 Optics 12112 | . . . . . . . . . . . 1610 880 763 1401 525 829 2882 49 1389 1784 Sensors 2936 | . . . . . . 724 203 664 . . 957 19 . . . 194 175 . . . Terrain 941 | . . . . . . . 18 . . . . . . . . . 923 . . . Seismic 5258 | 54 1464 922 723 975 929 191 . . . . . . . . . . . . . . Cloaking 2 | . . . . . . . . . . . . . . 1 . . . . 1 . Jamming 2 | . . . . . . 2 . . . . . . . . . . . . . . ECM 961 | . . . . . . . . . . . . . . . . . 928 33 . . Robot Analysis Total . | . . . . . . . . . . . . . . . . . . . . . Derelict Logs Recovered 7 | . . 2 . 1 . . . . . . . 1 2 . 1 . . . . . Drone Launches 10 | . . . . . . . . . . . . 4 2 . . 4 . . . . Drone Recoveries 5 | . . . . . . . . . . . . 2 1 . . 2 . . . . Exploration | -11 -10 -10 -10 -9 -8 -7 -6 -6 -6 -6 -5 -5 -5 -5 -4 -4 -4 -4 -3 -2 ------------- Run | Yrd Mat Min Exi Min Mat Fac Fac Ext Cet Arc Fac Upp Upp War Pro Fac Arm Lab Res Res Turns Passed 23914 | 139 1512 922 723 975 929 1124 531 1286 958 1118 1712 880 763 1401 1005 869 2882 49 1442 2694 Spaces Moved 12979 | 71 483 453 373 433 592 1333 913 764 463 285 842 428 354 817 419 348 1243 15 778 1572 Core 140 | 9 . . . . . . . . . . . . . . . . . . . 131 Treads 5800 | . . . . . . . . . 176 285 842 428 354 817 419 348 189 12 699 1231 Legs 3872 | 62 483 453 373 433 177 . . 258 287 . . . . . . . 1054 3 79 210 Wheels 747 | . . . . . 415 332 . . . . . . . . . . . . . . Hover 1248 | . . . . . . 245 497 506 . . . . . . . . . . . . Flight 1172 | . . . . . . 756 416 . . . . . . . . . . . . . Fastest Speed 26 | 50 120 190 190 190 95 26 26 42 120 160 160 160 160 160 160 160 117 152 120 50 Average Speed 132 | 111 181 190 190 190 117 57 38 71 137 160 160 160 160 160 160 160 125 159 166 147 Slowest Speed 330 | 120 190 190 190 190 260 140 56 190 260 160 160 160 160 160 160 160 330 190 190 225 Overloaded Moves 2 | . . . . . . . 2 . . . . . . . . . . . . . Propulsion Burnouts . | . . . . . . . . . . . . . . . . . . . . . Robots Hopped 10 | . . . . . . 8 2 . . . . . . . . . . . . . Potential Cave-ins 23 | . . . . . . . . . . . 3 . . 1 . . . . . 19 Cave-ins Triggered 2 | . . . . . . . . . . . . . . . . . . . . 2 Exploration Rate (%) 56 | 5 93 84 68 72 34 49 31 86 74 94 32 80 63 92 67 18 65 6 28 40 Regions Visited 20 Branch Regions 12 Pre-discovered Areas 3 | . 1 . . 1 . . . . . . . . . . 1 . . . . . Known Exits Taken 13 | . . . 1 . 1 1 1 1 1 1 1 1 1 1 1 1 . . . . Unknown Exits Taken 7 | 1 1 1 . 1 . . . . . . . . . . . . 1 1 1 . Scrap Searched 6 | . . 1 . 2 . . . . . . . 1 . . 2 . . . . . Spaces Dug 62 | . . . . . . 7 4 . 1 29 6 8 . . . 2 5 . . . Terrain Destroyed 1088 | . . . . . 20 7 4 34 2 29 75 23 34 26 31 72 334 . 19 378 Melee 11 | . . . . . . 7 4 . . . . . . . . . . . . . Projectile 264 | . . . . . . . . . 2 . 38 13 34 11 31 38 67 . 16 14 AOE 812 | . . . . . 20 . . 34 . 29 37 9 . 15 . 34 267 . 3 364 Terrain Rammed . | . . . . . . . . . . . . . . . . . . . . . Walls Destroyed . | . . . . . . . . . . . . . . . . . . . . . Machines Disabled . | . . . . . . . . . . . . . . . . . . . . . Actions | -11 -10 -10 -10 -9 -8 -7 -6 -6 -6 -6 -5 -5 -5 -5 -4 -4 -4 -4 -3 -2 --------- Run | Yrd Mat Min Exi Min Mat Fac Fac Ext Cet Arc Fac Upp Upp War Pro Fac Arm Lab Res Res Total 18349 | 104 1047 482 390 565 714 1594 1059 1455 787 917 1068 591 500 887 694 555 2186 41 875 1838 Wait 3445 | . 502 4 5 107 15 104 68 337 267 584 137 142 111 12 226 129 559 22 25 89 Move 12937 | 70 482 452 372 432 591 1316 908 763 462 284 841 427 353 816 418 347 1242 14 777 1570 Hop 10 | . . . . . . 8 2 . . . . . . . . . . . . . Pick Up 210 | 9 11 3 6 2 10 19 14 11 12 . 6 2 7 12 2 3 36 1 5 39 Fast Attach 141 | 4 . . . . 3 19 7 6 5 5 2 . . 3 3 8 39 . 17 20 Attach 124 | 3 1 2 1 . 7 17 10 9 2 . 2 2 1 4 . 1 29 3 5 25 Detach 10 | . . . . . . 2 2 . 1 . . . 1 . . . 3 . . 1 Swap 113 | 1 2 . 1 3 4 16 4 7 7 9 6 2 . 9 4 2 29 . 1 6 Drop 202 | 1 3 . 5 5 5 32 11 9 23 3 2 . 1 10 4 8 49 1 17 13 Fire 732 | 16 46 20 . 13 75 21 . 17 8 8 69 16 26 12 37 57 196 . 23 72 Melee 127 | . . . . . . 40 31 32 . 24 . . . . . . . . . . Ram 2 | . . . . . 2 . . . . . . . . . . . . . . . Kick 6 | . . 1 . 3 2 . . . . . . . . . . . . . . . Crush 11 | . . . . . . . . . . . 3 . . . . . 2 . 5 1 Escape Stasis 15 | . . . . . . . 2 11 . . . . . . . . . . . 2 Rewire 255 | . . . . . . . . 253 . . . . . . . . 2 . . . Trap . | . . . . . . . . . . . . . . . . . . . . . Miscellaneous 9 | . . . . . . . . . . . . . . 9 . . . . . . Route ------- -11/Scrapyard -10/Materials (discovered 5 exits: *Mat x3 / [*Min] / Sub) -10/Mines (discovered 4 exits: *Mat x2 / *Exi / Sub) -10/Exiles (discovered 2 exits: *Min x2) -9/Mines -8/Materials (discovered 2 exits: *Fac x2) -7/Factory (discovered 2 exits: *Fac / *Low) -6/Factory (discovered 2 exits: *Low / *Ext) -6/Extension (discovered 3 exits: *Fac x2 / *Cet) -6/Cetus (discovered 2 exits: *Fac / *Arc) -6/Archives (discovered 3 exits: *Fac / [*Hub x2]) -5/Factory (discovered 3 exits: *Fac x2 / *Upp) -5/Upper Caves -5/Upper Caves -5/Warlord -4/Proximity Caves -4/Factory (discovered 2 exits: *Upp / *Arm) -4/Armory -4/Lab -3/Research (discovered 2 exits: [*Res x2]) -2/Research (discovered 1 exit: Acc) History --------- Turn | Location | Event 7 | -11/Scrapyard | Discovered new exit (range 15) 140 | -11/Scrapyard | Entered Materials 312 | -10/Materials | Build established: Mutant 528 | -10/Materials | Discovered new exit (range 16) 640 | -10/Materials | Derelicts attacked the area 814 | -10/Materials | Discovered new exit (range 16) 1194 | -10/Materials | Discovered new exit (range 4) 1281 | -10/Materials | Learned location of Storage (-9) 1335 | -10/Materials | Discovered new exit (range 12) 1341 | -10/Materials | Learned 2 Mines zone layouts 1393 | -10/Materials | Learned Storage trap positions 1437 | -10/Materials | Learned 4 Subcaves zone layouts 1469 | -10/Materials | Loaded intel: 1 repair station location 1500 | -10/Materials | Identified exit to Subcaves 1500 | -10/Materials | Learned location of 1 exit from Materials 1518 | -10/Materials | Learned Storage stockpile data 1546 | -10/Materials | Learned Storage trap positions 1652 | -10/Materials | Entered Mines 1653 | -10/Mines | Identified exit to Materials 1683 | -10/Mines | Learned 2 Materials zone layouts 1744 | -10/Mines | Met a Derelict bent on vengeance 1756 | -10/Mines | Assembled infested the area 1761 | -10/Mines | Assisted by bots powering up and referring to "LRC-V3" 2106 | -10/Mines | Found a Scrap Suit stashed away for nefarious purposes 2182 | -10/Mines | Build established: Scavenger-Mutant 2223 | -10/Mines | Discovered exit to Materials (range 11) 2562 | -10/Mines | Deemed a non-threat by the Exiles lab entrance 2564 | -10/Mines | Discovered new exit (range 5) 2574 | -10/Mines | Entered Exiles 2575 | -10/Exiles | Identified exit to Mines 2622 | -10/Exiles | Met 8R-AWN 2649 | -10/Exiles | Met EX-HEX 2734 | -10/Exiles | Met EX-BIN 2757 | -10/Exiles | Aligned with FarCom system 2759 | -10/Exiles | Given EX-Vault access code 2802 | -10/Exiles | Opened EX-Vault 2819 | -10/Exiles | Found Latent Energy Streamer 2824 | -10/Exiles | Found Skeleton Box 2827 | -10/Exiles | Found Longsword +1 2869 | -10/Exiles | Warned to stay clear of 0b10 Research branches 2922 | -10/Exiles | Met EX-DEC 3297 | -10/Exiles | Stole three prototypes: Skeleton Box, Latent Energy Streamer, Longsword +1 3297 | -10/Exiles | Entered Mines 3732 | -9/Mines | Found a damaged Exp. Sensor Array with a note attached 3738 | -9/Mines | Found Prototype Device 3962 | -9/Mines | Discovered new exit (range 6) 4107 | -9/Mines | Received a Rocket Launcher from a helpful Derelict 4272 | -9/Mines | Entered Materials 4272 | -8/Materials | Evolved 4 slots: Propulsion x2, Utility x2 4273 | -8/Materials | Identified exit to Factory 4671 | -8/Materials | Lost 4 parts (1p1n1u1w) 4684 | -8/Materials | Discovered exit to Factory (range 4) 5201 | -8/Materials | Entered Factory 5201 | -7/Factory | Evolved 2 slots: Propulsion x1, Utility x1 5203 | -7/Factory | FarCom data flow suspended 5293 | -7/Factory | Identified Exp. Sensor Array 5519 | -7/Factory | Discovered new exit (range 12) 5547 | -7/Factory | Identified exit to Lower Caves 5838 | -7/Factory | Lost 3 parts (1n1u1w) 6266 | -7/Factory | Core integrity fell below 50% 6319 | -7/Factory | Discovered new exit (range 15) 6325 | -7/Factory | Identified exit to Factory 6325 | -7/Factory | Entered another Factory area 6325 | -6/Factory | Evolved 2 slots: Power x1, Propulsion x1 6352 | -6/Factory | Lost 3 parts (2n1u) 6488 | -6/Factory | Repaired Xenon Bombardment Thruster 6751 | -6/Factory | Discovered new exit (range 13) 6759 | -6/Factory | Identified exit to Lower Caves 6847 | -6/Factory | Discovered new exit (range 16) 6854 | -6/Factory | Identified exit to Extension 6856 | -6/Factory | Entered Extension 7134 | -6/Extension | Remotely autohacked Sealed Heavy Doors 7136 | -6/Extension | Rescued A7 7161 | -6/Extension | Remotely autohacked Sealed Heavy Doors 7165 | -6/Extension | Rescued a captive Derelict 7166 | -6/Extension | Rescued a captive Derelict 7343 | -6/Extension | Build established: Commander-Mutant 7515 | -6/Extension | Spotted B-75 Beast 7527 | -6/Extension | Allies destroyed B-75 Beast 7534 | -6/Extension | Spotted B-75 Beast 7553 | -6/Extension | Allies destroyed B-75 Beast 7555 | -6/Extension | Remotely autohacked Sealed Heavy Doors 7555 | -6/Extension | Discovered new exit (range 5) 7584 | -6/Extension | Lost 3 allies 7700 | -6/Extension | Remotely autohacked Sealed Heavy Doors 7700 | -6/Extension | Rescued a captive Derelict 7700 | -6/Extension | Rescued a captive Derelict 7719 | -6/Extension | Remotely autohacked Sealed Heavy Doors 7719 | -6/Extension | Rescued a captive Derelict 7739 | -6/Extension | Remotely autohacked Sealed Heavy Doors 7739 | -6/Extension | Rescued a captive Derelict 7740 | -6/Extension | Rescued a captive Derelict 7796 | -6/Extension | Remotely autohacked Sealed Heavy Doors 7797 | -6/Extension | Rescued a captive Derelict 7936 | -6/Extension | Remotely autohacked Sealed Heavy Doors 7936 | -6/Extension | Rescued a captive Derelict 8026 | -6/Extension | Discovered new exit (range 10) 8027 | -6/Extension | Discovered new exit (range 6) 8044 | -6/Extension | Identified exit to Factory 8047 | -6/Extension | Identified exit to Cetus 8142 | -6/Extension | Entered Cetus 8142 | -6/Cetus | Accompanied by 20 allies (A7) 8147 | -6/Cetus | Acquired a Cetus Manufacturing Module code from A7 8173 | -6/Cetus | Spotted Cetus Guard 8173 | -6/Cetus | Spotted Cetus Guard 8179 | -6/Cetus | Spotted Cetus Guard 8179 | -6/Cetus | Spotted Cetus Guard 8181 | -6/Cetus | Allies destroyed Cetus Guard 8188 | -6/Cetus | Allies destroyed Cetus Guard 8190 | -6/Cetus | Allies destroyed Cetus Guard 8191 | -6/Cetus | Allies destroyed Cetus Guard 8221 | -6/Cetus | Lost 4 allies 8237 | -6/Cetus | Remotely autohacked Sealed Heavy Doors 8254 | -6/Cetus | Discovered new exit (range 15) 8306 | -6/Cetus | Spotted Cetus Guard 8306 | -6/Cetus | Spotted Cetus Guard 8312 | -6/Cetus | Allies destroyed Cetus Guard 8315 | -6/Cetus | Spotted Cetus Guard 8317 | -6/Cetus | Allies destroyed Cetus Guard 8320 | -6/Cetus | Allies destroyed Cetus Guard 8327 | -6/Cetus | Discovered exit to Factory (range 16) 8334 | -6/Cetus | Met Revision 17 8675 | -6/Cetus | System corruption reached 10% 8752 | -6/Cetus | Started Cetus Manufacturing Module 8777 | -6/Cetus | Manufactured an Enhanced Grunt 8802 | -6/Cetus | Manufactured an Enhanced Grunt 8827 | -6/Cetus | Manufactured an Enhanced Grunt 8852 | -6/Cetus | Manufactured an Enhanced Grunt 8877 | -6/Cetus | Manufactured an Enhanced Grunt 8892 | -6/Cetus | Security sweep announced 9044 | -6/Cetus | Identified exit to Archives 9100 | -6/Cetus | Entered Archives 9100 | -6/Archives | Accompanied by 18 allies (A7) 9154 | -6/Archives | Discovered new exit (range 14) 9180 | -6/Archives | Discovered new exit (range 16) 9331 | -6/Archives | Discovered exit to Factory (range 15) 10217 | -6/Archives | System corruption reached 30% 10218 | -6/Archives | Entered Factory 10218 | -5/Factory | Accompanied by 15 allies 10218 | -5/Factory | Evolved 2 slots: Utility x2 10473 | -5/Factory | Discovered new exit (range 14) 10505 | -5/Factory | Identified exit to Factory 10757 | -5/Factory | Discovered exit to Factory (range 11) 10757 | -5/Factory | Spotted B-75 Beast 10771 | -5/Factory | Destroyed B-75 Beast 10833 | -5/Factory | Lost 5 allies 10922 | -5/Factory | Fabricated Adv. Heavy Siege Treads? 10941 | -5/Factory | Build established: Scavenger-Mutant 11206 | -5/Factory | System corruption reached 10% 11221 | -5/Factory | Lost 3 allies 11327 | -5/Factory | Build established: Scavenger-Skirmisher 11889 | -5/Factory | Discovered new exit (range 16) 11891 | -5/Factory | Lost 3 parts (1n2u) 11918 | -5/Factory | Identified exit to Upper Caves 11930 | -5/Factory | Entered Upper Caves 11932 | -5/Upper Caves | Attracted the attention of an 0b10 checkpoint 12048 | -5/Upper Caves | Learned Factory stockpile data 12215 | -5/Upper Caves | Encountered a Warlord checkpoint 12230 | -5/Upper Caves | Build established: Scavenger-Mutant 12311 | -5/Upper Caves | Discovered new exit (range 61) 12638 | -5/Upper Caves | Identified exit to Upper Caves 12810 | -5/Upper Caves | Entered another Upper Caves area 12904 | -5/Upper Caves | Attracted the attention of an 0b10 checkpoint 12974 | -5/Upper Caves | Learned Factory stockpile data 13279 | -5/Upper Caves | Spotted YZ-BNT(f) 13280 | -5/Upper Caves | Encountered a Master Thief 13280 | -5/Upper Caves | Spotted 7R-2LE(f) 13281 | -5/Upper Caves | Encountered a Master Thief 13282 | -5/Upper Caves | Skeleton Box stolen by Master Thief 13292 | -5/Upper Caves | Spotted 6J-9JD(f) 13293 | -5/Upper Caves | Encountered a Master Thief 13293 | -5/Upper Caves | Spotted 9Z-HT1(f) 13294 | -5/Upper Caves | Encountered a Master Thief 13295 | -5/Upper Caves | Longsword +1 stolen by Master Thief 13302 | -5/Upper Caves | Latent Energy Streamer stolen by Master Thief 13409 | -5/Upper Caves | Attacked by a delusional Derelict stockpiling parts 13497 | -5/Upper Caves | Learned Factory trap positions 13559 | -5/Upper Caves | Discovered new exit (range 2) 13562 | -5/Upper Caves | Identified exit to Warlord 13573 | -5/Upper Caves | Entered Warlord 13628 | -5/Warlord | System corruption cleaned by Quarantine Array 13889 | -5/Warlord | Learned Quarantine security intel 13889 | -5/Warlord | Learned Factory recycling unit intel 13889 | -5/Warlord | Learned Research fabricator intel 13889 | -5/Warlord | Learned Research recycling unit intel 13889 | -5/Warlord | Learned 4 Armory zone layouts 13889 | -5/Warlord | Learned 4 Research zone layouts 13889 | -5/Warlord | Learned 4 Research zone layouts 13889 | -5/Warlord | Learned Testing stockpile data 13964 | -5/Warlord | Met Warlord 13989 | -5/Warlord | Warlord's base attacked by MAIN.C 14174 | -5/Warlord | Found Prototype Energy Gun 14175 | -5/Warlord | Identified Vortex Rifle 14178 | -5/Warlord | Found Vortex Rifle 14185 | -5/Warlord | Found Prototype Energy Gun 14186 | -5/Warlord | Identified Vortex Rail 14189 | -5/Warlord | Found Vortex Rail 14339 | -5/Warlord | Warlord forces counterattacked 14345 | -5/Warlord | Found Prototype Special Weapon 14346 | -5/Warlord | Identified RU-N14's Throwing Claymores v3 14350 | -5/Warlord | Found RU-N14's Throwing Claymores v3 14382 | -5/Warlord | Spotted Striker 14383 | -5/Warlord | Spotted Striker 14388 | -5/Warlord | Destroyed Striker 14389 | -5/Warlord | Destroyed Striker 14410 | -5/Warlord | Destroyed 9 combat bots 14612 | -5/Warlord | Found Prototype Device 14613 | -5/Warlord | Identified Exp. Cloaking Device 14620 | -5/Warlord | Found Prototype Reactor 14620 | -5/Warlord | Identified Vortex Chain Reactor 14664 | -5/Warlord | Warlord base infiltrated, sounded retreat 14707 | -5/Warlord | Spotted Striker 14857 | -5/Warlord | Lost 3 allies 14892 | -5/Warlord | Spotted Striker 14955 | -5/Warlord | Discovered new exit (range 14) 14963 | -5/Warlord | Lost 7 allies 14971 | -5/Warlord | Identified exit to Proximity Caves 14974 | -5/Warlord | Entered Proximity Caves 15119 | -4/Proximity Caves | Learned location of Armory (-4) 15259 | -4/Proximity Caves | Spotter reported a threat 15311 | -4/Proximity Caves | Spotter reported a threat 15438 | -4/Proximity Caves | Spotter reported a threat 15497 | -4/Proximity Caves | Spotter reported a threat 15550 | -4/Proximity Caves | Spotter reported a threat 15748 | -4/Proximity Caves | Received a Behemoth hack from an annoying Tinkerer 15932 | -4/Proximity Caves | Discovered exit to Factory (range 9) 15979 | -4/Proximity Caves | Entered Factory 15979 | -4/Factory | Evolved 2 slots: Utility x1, Weapon x1 15980 | -4/Factory | Loaded intel: 88 trap records 15982 | -4/Factory | Loaded intel: 8 recycling unit locations 16067 | -4/Factory | Discovered new exit (range 26) 16145 | -4/Factory | Identified exit to Upper Caves 16229 | -4/Factory | Search patrols dispatched 16413 | -4/Factory | Build established: Scavenger-Tank 16479 | -4/Factory | Search patrols dispatched 16723 | -4/Factory | Discovered new exit (range 21) 16729 | -4/Factory | First assault squad dispatched 16846 | -4/Factory | Identified exit to Armory 16848 | -4/Factory | Entered Armory 16919 | -4/Armory | Repaired Lyr. Medium Armor Plating 17465 | -4/Armory | Found Exp. Terrain Scan Processor 17762 | -4/Armory | Build established: Scavenger-Skirmisher 17961 | -4/Armory | Destroyed 7 combat bots 17962 | -4/Armory | Lost 6 parts (1p2u3w) 18149 | -4/Armory | Found Fusion Bomb Launcher 18180 | -4/Armory | Build established: Scavenger-Gunner 18204 | -4/Armory | Found Prototype Processor 18205 | -4/Armory | Identified Exp. Targeting Computer 18364 | -4/Armory | Core integrity fell below 50% 18559 | -4/Armory | Spotted B-86 Titan 18563 | -4/Armory | Befriended a Behemoth using the annoying Tinkerer's hack 18598 | -4/Armory | First assault squad dispatched 18780 | -4/Armory | Found Prototype Device 18780 | -4/Armory | Identified Exp. ECM Suite 18813 | -4/Armory | Build established: Gunner 18971 | -4/Armory | Repaired Centrium Leg 19155 | -4/Armory | Build established: Scavenger-Gunner 19419 | -4/Armory | Core integrity fell below 20% 19452 | -4/Armory | Lost 3 parts (1p1n1u) 19622 | -4/Armory | System corruption reached 10% 19656 | -4/Armory | Destroyed 8 combat bots 19666 | -4/Armory | Lost 6 parts (1p3u2w) 19697 | -4/Armory | Discovered new exit (range 17) 19730 | -4/Armory | Entered Lab 19735 | -4/Lab | Discovered new exit (range 9) 19748 | -4/Lab | Lost 3 parts (1p1n1w) 19753 | -4/Lab | Unable to decrypt terminal 19779 | -4/Lab | Entered Research 19779 | -3/Research | Evolved 2 slots: Utility x1, Weapon x1 19781 | -3/Research | Loaded intel: 4 fabricator locations 19782 | -3/Research | Loaded intel: 5 recycling unit locations 19979 | -3/Research | Revision forces began assault on 0b10 20010 | -3/Research | Met up with Revision 17++ 20223 | -3/Research | Discovered new exit (range 14) 20318 | -3/Research | Found Prototype Processor 20318 | -3/Research | Identified Spectral Analyzer 20432 | -3/Research | Build established: Scavenger-Tank 20479 | -3/Research | Research terminal network offline 20580 | -3/Research | Spotted Executioner 20866 | -3/Research | Discovered new exit (range 16) 21111 | -3/Research | Spotted Striker 21127 | -3/Research | Destroyed Striker 21221 | -3/Research | Entered another Research area 21221 | -2/Research | Warlord forces began assault on 0b10 21221 | -2/Research | Evolved 2 slots: Utility x1, Weapon x1 21222 | -2/Research | Identified exit to Access 21331 | -2/Research | Research machine network offline 21402 | -2/Research | Found Prototype Launcher 21403 | -2/Research | Identified Gui. Micro-nuke Launcher 21414 | -2/Research | Borebot progress halted 21442 | -2/Research | Found Prototype Device 21455 | -2/Research | Identified Exp. Transmission Jammer 21471 | -2/Research | Spotted Executioner 21471 | -2/Research | Spotted Executioner 21480 | -2/Research | Destroyed Executioner 21725 | -2/Research | Met up with Warlord 21727 | -2/Research | Found Prototype Launcher 21728 | -2/Research | Identified Enh. Gamma Bomb Array 21977 | -2/Research | Borebot progress halted 22149 | -2/Research | Found Prototype Processor 22150 | -2/Research | Identified Exp. Core Analyzer 22214 | -2/Research | Spotted Striker 22221 | -2/Research | Warlord invited to help at Command 22221 | -2/Research | Given Cave Seal Controls access code 22377 | -2/Research | Borebot progress halted 22458 | -2/Research | Spotted Executioner 22497 | -2/Research | Spotted Striker 22589 | -2/Research | Spotted Striker 22594 | -2/Research | Spotted Striker 22611 | -2/Research | Spotted Striker 22635 | -2/Research | Spotted Striker 22643 | -2/Research | Destroyed Striker 22670 | -2/Research | Lost 3 allies 22701 | -2/Research | Spotted Striker 22983 | -2/Research | Spotted Executioner 22983 | -2/Research | Spotted Striker 22995 | -2/Research | Destroyed Striker 23195 | -2/Research | Spotted Striker 23198 | -2/Research | Spotted Striker 23209 | -2/Research | Spotted Striker 23245 | -2/Research | Lost 4 allies 23304 | -2/Research | Spotted Striker 23355 | -2/Research | Found Prototype Launcher 23355 | -2/Research | Identified Ragnarok Missile Launcher 23375 | -2/Research | Lost 3 allies 23428 | -2/Research | Spotted Striker 23428 | -2/Research | Spotted Executioner 23432 | -2/Research | Spotted Executioner 23528 | -2/Research | Core integrity fell below 50% 23530 | -2/Research | Released all parts (8) 23560 | -2/Research | Lost 16 parts (2p5n5u4w) 23668 | -2/Research | Spotted Executioner 23672 | -2/Research | Spotted Executioner 23728 | -2/Research | Crushed by falling debris 23736 | -2/Research | Crushed by falling debris 23737 | -2/Research | Found Exp. Core Analyzer 23754 | -2/Research | Spotted Executioner 23766 | -2/Research | Spotted Striker 23793 | -2/Research | Core integrity fell below 20% 23793 | -2/Research | Destroyed Executioner 23817 | -2/Research | Lost 8 allies 23833 | -2/Research | Spotted Striker 23839 | -2/Research | Lost 3 parts (1p1u1w) 23840 | -2/Research | Found Corrupted Exp. Core Analyzer 23842 | -2/Research | Found Corrupted Prototype Device 23879 | -2/Research | Spotted Striker 23890 | -2/Research | Build established: Scavenger-Mutant 23890 | -2/Research | Destroyed Striker 23893 | -2/Research | Spotted Executioner 23899 | -2/Research | Spotted Executioner 23910 | -2/Research | Lost 7 allies 23913 | -2/Research | Released all parts (13) 23915 | -2/Research | Destroyed by S-43 Plague with Heavy Machine Gun Last Messages --------------- 23907_ S-43 Plague destroyed. 23908_ Centrium Light Armor Plating destroyed. 23909_ Acquired 27 matter. 23910_ Centrium Light Armor Plating destroyed. 23910_ Penetrated by Slug. 23913_ Released Biometal Leg. 23913_ Released Lgt. Antimatter Reactor. 23913_ Released Exp. Energy Well. 23913_ Released Enh. Biometal Leg. 23913_ Released Flexi-carbon Leg. 23913_ Released Lrg. Storage Unit. 23913_ Released Exp. Heat Sink. 23913_ Released Enh. Biometal Leg. 23913_ Released Helical Railgun. 23913_ Released Enh. Optical Array. 23913_ Released Biometal Leg. 23913_ Released Imp. Quantum Reactor. 23913_ Released Exp. Core Analyzer. 23913_ Extracted 1 energy. 23914_ Acquired Adv. Hacking Suite. Map ----- +----------------------------------------------------+ | ?# #? # [##+??????????? | | ?# ! #?? # ###?? #????????????? | | ?# [%! ##?? # =! ?????#????????????? | | ?# % ##??? # ! +?????????????????? | | ## =%=% #???? #? #?????????????????? | | # % #% ##???? #?? #?????????????????? | | # [ # # ## #??????#??? #?????????????????? | | # %=% #??????????? #?????????????????? | | # =[ # # #????????????##?????????????????? | | + % ##???????????????????????????????? | | " * ## # #????????????????????????????????? | | # #????????????????????????????????? | | # ##???????????????????????????????? | | # ![*[= = #???????#???????????????????????? | | #" %*%=!% = ####????? ???????????????????????? | | "%%%!!%*% # #????? ???????????????????????? | | % *=!==![[ ###??? ???????????????????????? | | " %=!=%=[[[= #### ???????????????????????? | | %=|%![!!%= % %[ =[ % ??????????????????????? | | %!!!!!%%[! =%/!%% *[ % ?????????????????????? | | %!%!|%!%[! ==% =[%*%%% ["""?????????????????????? | | *=%%=]!# [ =# ###?????????????????????? | | != %%# # ####;###?????????????????????? | | % # # == ## #?????????????????????? | | "# ## == ## #?????????????????????? | | " [[ # ## %/s [@=#?????????????????????? | | "" =%% "# ;s**=[!#?????????????????????? | | " =* # # ## ; #s[*!!=#?????????????????????? | | #! " # ! # ![=s*#?????????????????????? | | #%!!%= * %% "#####s###?????????????????????? | | *=!= [=*% %== [s="#??????????????????????? | | !%!!=%*[%! % ![*""###*##??????????????????????? | | !!% =!%=# = %!=%!= #?# #???????????????????????? | | !=%## === ##?# #???????????????????????? | | %""##### *%=%##### #???????????????????????? | | "%"#### %=%!= # #???????????????????????? | | [ ## =*[%% # #???????????????????????? | | # ## [%[!%% %# #???????????????????????? | | # # ! ## ""%!! % # "???????????????????????? | | !%! ##""""" !%%" ?????????????????? | | ##"" "" !!" % ==????????????? | | # ##""""" =" % =%?????????????? | | % #"""" * =%%" %% [%*?????????????? | | # """" %%* [*"###""#"# T#??????????????? | | * # """%== ##?? ##?#?????????????????? | | ! ##%%!%%* #????#????????????????????? | | # # ]=%[ #?????????????????????????? | | % #############?????????????????????????? | | # ##???????????????????????????????????? | | / ###?????????????????????????????????? | +----------------------------------------------------+ Best States ------------- Heat Dissipation 107 Coolant Potential 100 Energy Generation 55 Energy Capacity 1020 Matter Stores 700 Matter Capacity 700 Sight Range 23 Robot Scan Range 16 Terrain Scan Range 24 Terrain Scan Density 1010 ECM Strength 3 Armor Coverage 1200 Resistance: TH 15 Power Shielding 66 Utility Shielding 66 Weapon Cycling 20 Evasion (%) 64 Targeting Accuracy 18 Target Analysis 6 Core Analysis 8 Armor Integrity Analysis 40 Recoil Reduction 6 Salvage Targeting 2 Defensive Hacking 12 Item Schematics ----------------- None Robot Schematics ------------------ None Fabricated ------------ Adv. Heavy Siege Treads | x1 | -5/Factory | Preloaded Repaired ---------- Xenon Bombardment Thruster | 3% | -6/Factory Lyr. Medium Armor Plating | 19% | -4/Armory Centrium Leg | 9% | -4/Armory Alien Tech Used ----------------- None Achievements -------------- None Challenges ------------ None Game ------ Seed NavigationCryofiberPower Manual? 0 Play Time 03:41:26 Cumulative 182.8 hours Start 2025.09.14 @ 13:04:07 End 2025.09.16 @ 10:59:17 Sessions 7 Manual Loads 0 Difficulty Rogue Special Mode None Game No. 248 Rogue 248 Adventurer 0 Explorer 0 Win Type - Total 2 Types 2/0/0/0/0/0/0/0/0/0 Lore% 73 Gallery% 71 Achievement% 60 Wizard Run 0 Options --------- Layout 0 ASCII 0 Keyboard 0 Movement Mouse Keybinds 0 Fullscreen 1 Font 16/SmallcapsGlow Map View 75x55 Zoom Use 0% Tactical HUD 1 Map Filters NONE Filters NONE Steam 1 RUN: 798fc034-bcbf-41c7-a509-0e73fc119707